[Event "8th Amsterdam Summer Open-A 2018"]
[Site "Amsterdam"]
[Date "2018.07.09"]
[Round "3"]
[White "Grooten, Herman"]
[Black "Brouwer, Rein"]
[Result "1-0"]
[ECO "E04"]
[WhiteElo "2384"]
[BlackElo "2062"]
[Annotator "NA"]
[PlyCount "71"]
[EventDate "2018.07.07"]
[EventType "swiss"]
[EventCountry "NED"]
[SourceTitle "playchess.com"]
[Source "ChessBase"]
[SourceQuality "1"]
[TimeControl "40/5400+30:1800+30"]

1. d4 {[%emt 0:02:43]} d5 {[%emt 0:00:00]} 2. c4 {[%emt 0:00:09]} c6 {[%emt 0:00:03]} 3. Nf3 {[%emt 0:00:10]} Nf6 {[%emt 0:00:09]} 4. g3 {[%emt 0:00:07]} dxc4 {[%emt 0:01:10]} 5. Bg2 {[%emt 0:00:31]} b5 {[%emt 0:00:38]} 6. Ne5 {[%emt 0:00:19]} Bb7 {[%emt 0:01:33]} 7. a4 {[%emt 0:00:18]} a6 {[%emt 0:00:12]} 8. O-O {[%emt 0:01:19]} e6 {[%emt 0:01:56] LiveBook: 104 Games} 9. Nc3 {[%emt 0:01:59]} Nd5 {[%emt 0:17:45]} 10. Ne4 {[%emt 0:05:25] E04: Katalanisch} (10. e4 Nxc3 11. bxc3 Be7 12. Rb1 Qc8 13. Qg4 g6 14. f4 Nd7 15. f5 Nxe5 16. dxe5 h5 17. Qf3 exf5 18. exf5 Qxf5 19. Qxc6+ Bxc6 20. Bxc6+ {½-½ (78) Inarkiev,E (2689)-Piorun,K (2651) Katowice 2017}) 10... Be7 {[%emt 0:02:47]} 11. Nc5 {[%emt 0:02:38]} Bxc5 {[%emt 0:02:06]} 12. dxc5 {[%emt 0:00:08]} Nd7 {[%emt 0:02:18]} 13. Nxd7 {[%emt 0:02:14]} Qxd7 {[%emt 0:00:21]} 14. e4 $146 {[%emt 0:00:42]} ({White should try} 14. b3 $11) ({Vorgänger:} 14. Bg5 h6 15. Bd2 O-O 16. e4 Nf6 17. Qc1 Qe7 {0-1 (44) Bronstein,L (2420)-Juarez,A (2260) Buenos Aires 1993}) 14... O-O {[%emt 0:09:11]} 15. b3 {[%emt 0:08:00]} cxb3 $2 {[%emt 0:06:20]} ({Black should play} 15... Nf6 $14) 16. Qxb3 {[%emt 0:07:24]} Qe7 {[%emt 0:05:38]} 17. exd5 {[%emt 0:03:34]} cxd5 {[%emt 0:03:09]} 18. axb5 {[%emt 0:02:43]} axb5 {[%emt 0:00:19]} 19. Rxa8 {[%emt 0:00:08]} Rxa8 {[%emt 0:00:23]} 20. Qxb5 {[%emt 0:00:54]} Ba6 {[%emt 0:00:51]} 21. Qa5 {[%emt 0:03:16]} Qe8 {[%emt 0:00:14]} 22. Re1 {[%emt 0:00:29]} Bb5 {[%emt 0:00:17]} 23. Qc3 {[%emt 0:00:28]} Bc4 {[%emt 0:03:42]} 24. Bb2 {[%emt 0:01:33]} f6 {[%emt 0:00:58]} 25. f4 {[%emt 0:01:24]} Qd7 {[%emt 0:09:02]} 26. Qe3 $18 {[%emt 0:10:29]} Ra6 {[%emt 0:04:53]} 27. g4 {[%emt 0:05:26]} h6 {[%emt 0:06:37]} 28. Bd4 {[%emt 0:05:51]} Kf7 {[%emt 0:03:13]} 29. Rb1 {[%emt 0:01:14]} Ra2 {[%emt 0:04:25]} 30. Bf3 {[%emt 0:00:53]} Ra6 {[%emt 0:06:20]} 31. Rb6 {[%emt 0:03:48]} Qc8 {[%emt 0:01:13]} 32. Kf2 {[%emt 0:04:06]} Ra2+ {[%emt 0:03:10]} 33. Kg3 {[%emt 0:00:39]} Ra6 {[%emt 0:00:24]} 34. h4 {[%emt 0:00:27]} Rxb6 {[%emt 0:03:01]} 35. cxb6 {[%emt 0:00:07]} Qb8 {[%emt 0:00:05]} 36. Qa3 {[%emt 0:02:14]} 1-0

[Event "8th Amsterdam Summer Open-A 2018"]
[Site "Amsterdam"]
[Date "2018.07.09"]
[Round "3"]
[White "Elgersma, Simon"]
[Black "Romkes, Abel"]
[Result "1/2-1/2"]
[ECO "C78"]
[WhiteElo "2263"]
[BlackElo "2018"]
[Annotator "ChessBase"]
[PlyCount "50"]
[EventDate "2018.07.07"]
[EventType "swiss"]
[EventCountry "NED"]
[SourceTitle "playchess.com"]
[Source "ChessBase"]
[SourceQuality "1"]
[TimeControl "40/5400+30:1800+30"]

1. e4 {[%emt 22:17:02]} e5 {[%emt 0:00:08]} 2. Nf3 {[%emt 0:00:22]} Nc6 {[%emt 0:00:09]} 3. Bb5 {[%emt 0:00:05]} a6 {[%emt 0:00:11]} 4. Ba4 {[%emt 0:00:05]} Nf6 {[%emt 0:00:13]} 5. O-O {[%emt 0:00:16]} b5 {[%emt 0:00:16]} 6. Bb3 {[%emt 0:00:02]} Bc5 {[%emt 0:00:09]} 7. Re1 {[%emt 0:03:39]} O-O {[%emt 0:01:42]} 8. c3 {[%emt 0:01:27]} d6 {[%emt 0:00:46]} 9. d4 {[%emt 0:01:12]} Bb6 {[%emt 0:00:11]} 10. a4 {[%emt 0:00:22]} Rb8 {[%emt 0:01:42]} 11. Na3 {[%emt 0:04:00]} Bg4 {[%emt 0:02:17]} 12. axb5 {[%emt 0:04:39]} axb5 {[%emt 0:00:15]} 13. Nxb5 {[%emt 0:00:08]} Bxf3 {[%emt 0:00:22]} 14. gxf3 {[%emt 0:00:03]} Nh5 {[%emt 0:00:33]} 15. Be3 {[%emt 0:15:25]} Qf6 {[%emt 0:05:33]} 16. Kh1 {[%emt 0:13:03]} exd4 {[%emt 0:03:59]} 17. cxd4 {[%emt 0:19:34]} Ba5 {[%emt 0:08:35]} 18. Nc3 {[%emt 0:00:10]} Bxc3 {[%emt 0:00:29]} 19. bxc3 {[%emt 0:00:39]} Rxb3 {[%emt 0:00:28]} 20. Qxb3 {[%emt 0:00:22]} Qxf3+ {[%emt 0:00:08]} 21. Kg1 {[%emt 0:00:02]} Qg4+ {[%emt 0:01:44]} 22. Kf1 {[%emt 0:13:21]} Nf4 {[%emt 0:01:19]} 23. Reb1 {[%emt 0:01:07]} Qe2+ {[%emt 0:01:24]} 24. Kg1 {[%emt 0:00:29]} Qg4+ {[%emt 0:00:47]} 25. Kf1 {[%emt 0:00:07]} Qe2+ {[%emt 0:00:11]} 1/2-1/2

[Event "8th Amsterdam Summer Open-A 2018"]
[Site "Amsterdam"]
[Date "2018.07.09"]
[Round "3"]
[White "Floor, Dirk"]
[Black "Riemersma, Li"]
[Result "0-1"]
[ECO "E04"]
[WhiteElo "2196"]
[BlackElo "2458"]
[Annotator "RC"]
[PlyCount "64"]
[EventDate "2018.07.07"]
[EventType "swiss"]
[EventCountry "NED"]
[SourceTitle "playchess.com"]
[Source "ChessBase"]
[SourceQuality "1"]
[TimeControl "40/5400+30:1800+30"]

1. d4 {[%emt 0:00:00]} Nf6 {[%emt 0:00:00]} 2. c4 {[%emt 0:01:18]} e6 {[%emt 0:00:00]} 3. Nf3 {[%emt 0:00:45]} d5 {[%emt 0:00:00]} 4. g3 {[%emt 0:00:20]} dxc4 {[%emt 0:00:00]} 5. Bg2 {[%emt 0:00:30]} Nc6 {[%emt 0:00:09]} 6. O-O {[%emt 0:00:37]} Rb8 {[%emt 0:00:47]} 7. Nc3 {[%emt 0:10:11]} Bb4 {[%emt 0:24:44]} 8. Bg5 {[%emt 0:06:23]} h6 {[%emt 0:08:38]} 9. Bxf6 {[%emt 0:00:41]} Qxf6 {[%emt 0:00:02]} 10. e4 {[%emt 0:08:45]} O-O {[%emt 0:03:27]} 11. e5 {[%emt 0:02:02]} Qd8 {[%emt 0:03:23]} 12. Re1 {[%emt 0:07:42]} b5 {[%emt 0:04:22]} 13. Re4 {[%emt 0:01:01]} Ne7 {[%emt 0:01:51]} 14. a3 {[%emt 0:03:24]} Bxc3 {[%emt 0:06:17]} 15. bxc3 {[%emt 0:00:09]} Bb7 {[%emt 0:01:55]} 16. Rg4 {[%emt 0:05:45]} c5 {[%emt 0:00:43]} 17. dxc5 {[%emt 0:07:55]} Qxd1+ {[%emt 0:13:53]} 18. Rxd1 {[%emt 0:00:13]} Nd5 {[%emt 0:00:12]} 19. Nd4 {[%emt 0:02:26]} Nxc3 {[%emt 0:02:14]} 20. Rc1 {[%emt 0:07:27]} Bxg2 {[%emt 0:00:15]} 21. Kxg2 {[%emt 0:00:14]} Nd5 {[%emt 0:00:36]} 22. Nc6 {[%emt 0:06:26]} Rbc8 {[%emt 0:03:03]} 23. Nxa7 {[%emt 0:02:12]} Rxc5 {[%emt 0:00:05]} 24. a4 {[%emt 0:00:30]} bxa4 {[%emt 0:04:27]} 25. Rcxc4 {[%emt 0:01:02]} Rxc4 {[%emt 0:00:06]} 26. Rxc4 {[%emt 0:00:08]} Nb6 {[%emt 0:00:03]} 27. Rc6 {[%emt 0:01:46]} Ra8 {[%emt 0:00:08]} 28. Nb5 {[%emt 0:00:10]} Nd7 {[%emt 0:00:19]} 29. f4 {[%emt 0:01:54]} a3 {[%emt 0:00:26]} 30. Rc1 {[%emt 0:00:46]} a2 {[%emt 0:00:19]} 31. Ra1 {[%emt 0:00:12]} Nc5 {[%emt 0:00:09]} 32. Nc3 {[%emt 0:05:38]} Ra3 {[%emt 0:01:01]} 0-1

[Event "8th Amsterdam Summer Open-A 2018"]
[Site "Amsterdam"]
[Date "2018.07.09"]
[Round "3"]
[White "Elgersma, Onno"]
[Black "Brink, Barry"]
[Result "*"]
[ECO "C45"]
[WhiteElo "2150"]
[BlackElo "2342"]
[Annotator "NA"]
[PlyCount "68"]
[EventDate "2018.07.07"]
[EventType "swiss"]
[EventCountry "NED"]
[SourceTitle "playchess.com"]
[Source "ChessBase"]
[SourceQuality "1"]
[TimeControl "40/5400+30:1800+30"]

1. e4 {[%emt 0:00:00]} e5 {[%emt 0:00:00]} 2. Nf3 {[%emt 0:00:12]} Nc6 {[%emt 0:00:00]} 3. d4 {[%emt 0:00:50]} exd4 {[%emt 0:00:00]} 4. Nxd4 {[%emt 0:00:03]} Nf6 {[%emt 0:00:14]} 5. Nxc6 {[%emt 0:00:15]} bxc6 {[%emt 0:00:09]} 6. e5 {[%emt 0:00:35]} Qe7 {[%emt 0:00:34]} 7. Qe2 {[%emt 0:00:27]} Nd5 {[%emt 0:00:20]} 8. h4 {[%emt 0:01:11]} Bb7 {[%emt 0:01:09] C45: Scotch Game} 9. c4 {[%emt 0:05:10]} Nb6 {[%emt 0:00:51] LiveBook: 4 Partien} 10. Bg5 $146 {[%emt 0:08:26]} ({Predecessor:} 10. Rh3 Qe6 11. f4 O-O-O 12. a4 d5 13. a5 Nxc4 14. b3 Bb4+ 15. Kf2 Nxa5 16. Bd2 {½-½ (73) Nakamura,H (2781)-Carlsen,M (2837) London 2017}) 10... Qe6 {[%emt 0:05:43]} 11. Nd2 {[%emt 0:02:28]} h6 {[%emt 0:03:27]} 12. Bf4 {[%emt 0:02:18]} O-O-O {[%emt 0:01:39]} 13. O-O-O {[%emt 0:03:27]} Kb8 {[%emt 0:09:51]} 14. Nb3 {[%emt 0:08:10]} Qf5 {[%emt 0:20:49]} 15. Qe3 {[%emt 0:04:19]} Qe6 {[%emt 0:12:54]} 16. Nc5 {[%emt 0:19:22]} ({Better is} 16. Na5 $16) 16... Qe7 {[%emt 0:09:30]} 17. Nxb7 {[%emt 0:00:56]} Kxb7 {[%emt 0:01:45]} 18. Rh3 {[%emt 0:04:07]} Qc5 {[%emt 0:03:20]} 19. Rf3 {[%emt 0:10:45]} Be7 {[%emt 0:06:22]} 20. Qxc5 {[%emt 0:03:31]} Bxc5 {[%emt 0:00:14]} 21. Bg3 {[%emt 0:00:18]} Rhf8 {[%emt 0:00:40]} 22. Kc2 {[%emt 0:01:08]} Rde8 {[%emt 0:01:56]} 23. Rf5 {[%emt 0:02:37]} Re6 {[%emt 0:00:51]} 24. h5 {[%emt 0:01:40]} a5 {[%emt 0:01:30]} 25. Rd3 {[%emt 0:00:57]} d5 {[%emt 0:09:17]} 26. exd6 {[%emt 0:01:19]} cxd6 {[%emt 0:00:22]} 27. Rd2 {[%emt 0:06:06]} Nd7 {[%emt 0:01:23]} 28. Rxc5 {[%emt 0:05:39]} Nxc5 {[%emt 0:00:09]} 29. Bxd6 {[%emt 0:00:03]} Rxd6 {[%emt 0:00:24]} 30. Rxd6 {[%emt 0:00:02]} Re8 {[%emt 0:00:39]} 31. Rd2 {[%emt 0:00:44]} Re1 {[%emt 0:02:57]} 32. Bd3 {[%emt 0:00:36]} Rh1 {[%emt 0:04:19]} 33. Re2 {[%emt 0:00:37]} Ne6 {[%emt 0:00:35]} 34. Re5 {[%emt 0:00:38]} Kb6 {[%emt 0:01:23]} *

[Event "8th Amsterdam Summer Open-A 2018"]
[Site "Amsterdam"]
[Date "2018.07.09"]
[Round "3"]
[White "Mesman, Edwyn"]
[Black "Lai, Hing Ting"]
[Result "0-1"]
[ECO "E38"]
[WhiteElo "2100"]
[BlackElo "2447"]
[Annotator "NA"]
[PlyCount "50"]
[EventDate "2018.07.07"]
[EventType "swiss"]
[EventCountry "NED"]
[SourceTitle "playchess.com"]
[Source "ChessBase"]
[SourceQuality "1"]
[TimeControl "40/5400+30:1800+30"]

{[%evp 11,35,33,39,49,32767,49,69,71,87,0,6,32767,54,48,60,70,32767,93,83,-27,-16,32767,32767,32767,32767,-210]} 1. d4 {[%emt 0:00:00]} Nf6 {[%emt 0:00:00]} 2. c4 {[%emt 0:00:00]} e6 {[%emt 0:00:00]} 3. Nc3 {[%emt 0:00:00]} Bb4 {[%emt 0:00:00]} 4. Qc2 {[%emt 0:00:00]} c5 {[%emt 0:00:02]} 5. dxc5 {[%emt 0:00:09]} Bxc5 {[%emt 0:00:07]} 6. Nf3 {[%emt 0:00:09]} Qb6 {[%emt 0:00:06]} 7. e3 $1 {[%emt 0:00:09]} Qc7 {[%emt 0:00:04]} 8. g4 {[%emt 0:02:38] E38: Nimzo-Indian: Classical: 4...c5} (8. b3 a6 9. Bb2 b6 10. Be2 Bb7 11. g4 h6 12. Rg1 Nc6 13. a3 Ne5 14. Nxe5 Qxe5 15. Rg3 Qc7 16. O-O-O d5 17. cxd5 exd5 18. Kb1 {½-½ (18) Sakaev,K (2594)-Khismatullin,D (2628) Sochi 2017}) 8... Nxg4 {[%emt 0:03:47]} 9. Rg1 {[%emt 0:01:12] LiveBook: 4 Games} Ne5 {[%emt 0:11:14] [#]} 10. Be2 {[%emt 0:09:43]} (10. Nxe5 $1 $16 Qxe5 11. f4) 10... Nxf3+ $146 {[%emt 0:11:50]} ({Predecessor:} 10... Nbc6 11. a3 b6 12. b4 Be7 13. Bb2 Bb7 14. Nd2 a6 15. Nce4 f5 {1-0 (35) Machlik,M (2005)-Hund,S (1909) Erfurt 2014}) 11. Bxf3 {[%emt 0:00:26]} O-O {[%emt 0:00:50]} 12. b3 {[%emt 0:04:45]} Bd6 {[%emt 0:18:11]} 13. Bb2 {[%emt 0:09:13]} Be5 {[%emt 0:06:23]} 14. O-O-O {[%emt 0:10:44]} Nc6 {[%emt 0:03:29]} 15. Rg2 {[%emt 0:18:55]} (15. Bh1 $16) 15... d5 {[%emt 0:07:34]} 16. Rdg1 {[%emt 0:25:41]} g6 {[%emt 0:00:06]} 17. Kb1 {[%emt 0:00:13]} dxc4 {[%emt 0:01:57]} 18. Nb5 $19 {[%emt 0:01:30]} (18. bxc4 $17 Qb6 19. h4) 18... cxb3 {[%emt 0:04:03]} 19. axb3 {[%emt 0:00:51]} Qd8 {[%emt 0:06:03]} 20. Nd4 {[%emt 0:11:47]} Nxd4 {[%emt 0:06:08]} 21. exd4 {[%emt 0:00:05]} Bg7 {[%emt 0:00:13]} 22. Be4 {[%emt 0:01:29]} Bd7 {[%emt 0:00:26]} 23. Bxg6 {[%emt 0:00:55]} fxg6 {[%emt 0:00:17]} 24. Rxg6 {[%emt 0:00:05]} hxg6 {[%emt 0:00:07]} 25. Qxg6 {[%emt 0:00:04]} Qf6 {[%emt 0:00:18]} 0-1

[Event "8th Amsterdam Summer Open-A 2018"]
[Site "Amsterdam"]
[Date "2018.07.09"]
[Round "3"]
[White "Theulings, Paul-Peter"]
[Black "Bosboom, Manuel"]
[Result "1-0"]
[ECO "A40"]
[WhiteElo "2088"]
[BlackElo "2403"]
[Annotator "NA"]
[PlyCount "47"]
[EventDate "2018.07.07"]
[EventType "swiss"]
[EventCountry "NED"]
[SourceTitle "playchess.com"]
[Source "ChessBase"]
[SourceQuality "1"]
[TimeControl "40/5400+30:1800+30"]

{[%evp 8,42,24,39,32767,45,86,123,111,32767,32767,112,216,212,424,32767,32767,32767,259,32767,493,32767,32767,32767,411,183,32767,225,32767,32767,32767,32767,32767,32767,32767,32767,551]} 1. Nf3 {[%emt 0:00:00]} c5 {[%emt 0:00:12]} 2. c4 {[%emt 0:00:00]} g6 {[%emt 0:01:28]} 3. d4 {[%emt 0:00:46]} cxd4 {[%emt 0:00:59]} 4. Nxd4 {[%emt 0:00:10]} Bg7 {[%emt 0:00:50]} 5. e4 {[%emt 0:00:33]} Qb6 {[%emt 0:05:12]} 6. Nb3 {[%emt 0:02:37] LiveBook: 45 Games} f5 {[%emt 0:05:14] A40: Unusual replies to 1 d4} (6... a5 7. c5 Qc7 8. Nc3 Bxc3+ 9. bxc3 Nf6 10. Qd4 a4 11. Nd2 Nc6 12. Qe3 Na5 13. Be2 O-O 14. O-O {½-½ (50) Geller,J (2526)-Morozevich,A (2676) Moscow 2017}) 7. exf5 {[%emt 0:03:49]} gxf5 {[%emt 0:01:06]} 8. Be2 {[%emt 0:02:36]} Nf6 {[%emt 0:02:50]} 9. O-O $146 {[%emt 0:04:21]} ({Predecessor:} 9. Nc3 O-O 10. c5 Qd8 11. Qd3 Nc6 12. O-O a5 13. Na4 b5 14. Nb6 {½-½ (46) Horvath,G (2441)-Jouhki,Y (2274) Panormo 2001}) 9... h5 {[%emt 0:15:44]} (9... O-O $16) 10. Nc3 {[%emt 0:10:05]} Ng4 $2 {[%emt 0:13:39]} (10... Nc6 11. Bg5 Qd8) 11. c5 {[%emt 0:10:28]} Qc7 {[%emt 0:02:34]} 12. g3 {[%emt 0:03:51]} Bxc3 {[%emt 0:01:56]} 13. bxc3 {[%emt 0:00:06]} b6 $2 {[%emt 0:08:19]} (13... Qc6 14. h3 Nf6) 14. Bf3 {[%emt 0:18:14]} Bb7 {[%emt 0:11:09]} 15. Nd4 {[%emt 0:00:06]} bxc5 $2 {[%emt 0:01:29]} (15... Ne5) 16. Nxf5 {[%emt 0:00:39]} (16. Bf4 $142 Bxf3 17. Qxf3 (17. Bxc7 $2 {verliert.} Bxd1 18. Rfxd1 cxd4 $19)) 16... Nc6 {[%emt 0:03:09]} 17. Ng7+ {[%emt 0:04:45]} (17. Bf4 $142 Nge5 18. Bxh5+ Kd8 19. Re1) 17... Kf7 {[%emt 0:01:23]} 18. Nxh5 {[%emt 0:03:06]} Rag8 {[%emt 0:11:22]} 19. Bxg4 {[%emt 0:08:22]} Ne5 {[%emt 0:00:06]} 20. f3 {[%emt 0:00:41]} Ke8 {[%emt 0:01:56]} 21. Rb1 {[%emt 0:05:58]} Nxg4 $18 {[%emt 0:02:55]} 22. fxg4 {[%emt 0:00:18]} Be4 {[%emt 0:00:41]} 23. Bf4 {[%emt 0:01:43]} d6 {[%emt 0:00:22]} 24. Bxd6 {[%emt 0:01:43]} 1-0

[Event "8th Amsterdam Summer Open-A 2018"]
[Site "Amsterdam"]
[Date "2018.07.09"]
[Round "3"]
[White "Cornelisse, Ticho"]
[Black "Van Baar, Esper"]
[Result "1-0"]
[ECO "A00"]
[WhiteElo "2074"]
[BlackElo "2252"]
[Annotator "NA"]
[PlyCount "63"]
[EventDate "2018.07.07"]
[EventType "swiss"]
[EventCountry "NED"]
[SourceTitle "playchess.com"]
[Source "ChessBase"]
[SourceQuality "1"]
[TimeControl "40/5400+30:1800+30"]

1. g3 {[%emt 0:00:00]} e5 {[%emt 0:04:32]} 2. Bg2 {[%emt 0:01:03]} d5 {[%emt 0:00:47]} 3. c4 {[%emt 0:01:04]} d4 {[%emt 0:02:06]} 4. d3 {[%emt 0:02:23]} Bb4+ {[%emt 0:02:48]} 5. Nd2 {[%emt 0:04:09]} c5 {[%emt 0:03:15]} 6. a3 {[%emt 0:04:22]} Ba5 {[%emt 0:04:27]} 7. b4 {[%emt 0:00:17]} cxb4 {[%emt 0:04:09]} 8. axb4 {[%emt 0:00:16]} Bc7 {[%emt 0:00:11]} 9. c5 {[%emt 0:22:27]} Qe7 {[%emt 0:34:44]} (9... Ne7 $16 {might work better.}) 10. Qc2 {[%emt 0:13:14]} Nc6 {[%emt 0:07:25]} 11. b5 {[%emt 0:03:02]} Na5 {[%emt 0:05:03]} 12. Ba3 {[%emt 0:01:56]} Qd8 {[%emt 0:00:01]} 13. Bb4 {[%emt 0:01:07]} Rb8 {[%emt 0:02:07]} 14. b6 {[%emt 0:01:51]} axb6 {[%emt 0:00:07]} 15. cxb6 {[%emt 0:00:08]} Bxb6 {[%emt 0:00:38]} 16. Bxa5 $1 {[%emt 0:00:15]} Ra8 {[%emt 0:01:54]} 17. Bc3 $18 {[%emt 0:05:00]} dxc3 {[%emt 0:05:13]} 18. Rxa8 {[%emt 0:00:53]} cxd2+ {[%emt 0:00:04]} 19. Qxd2 {[%emt 0:07:51]} Qc7 {[%emt 0:00:11]} 20. Nf3 {[%emt 0:01:03]} Ne7 {[%emt 0:00:04]} 21. O-O {[%emt 0:01:28]} O-O {[%emt 0:00:04]} 22. Rc1 {[%emt 0:01:00]} Nc6 {[%emt 0:00:01]} 23. Qb2 {[%emt 0:01:17]} f6 {[%emt 0:01:31]} 24. Qb3+ {[%emt 0:01:33]} Kh8 {[%emt 0:00:03]} 25. Bh3 {[%emt 0:01:51]} f5 {[%emt 0:07:35]} 26. Qb5 {[%emt 0:01:11]} e4 {[%emt 0:05:30]} 27. Ne5 {[%emt 0:05:08]} exd3 {[%emt 0:02:05]} 28. exd3 {[%emt 0:00:53]} g6 {[%emt 0:05:03]} 29. Nxc6 {[%emt 0:00:38]} bxc6 {[%emt 0:00:57]} 30. Qxc6 {[%emt 0:00:28]} Bxf2+ {[%emt 0:01:50]} 31. Kxf2 {[%emt 0:00:27]} Qe5 {[%emt 0:00:34]} 32. Qc3 {[%emt 0:00:19] Qe2+ [%emt 00:00:34]} 1-0

[Event "8th Amsterdam Summer Open-A 2018"]
[Site "Amsterdam"]
[Date "2018.07.09"]
[Round "3"]
[White "Bogaard, Milo"]
[Black "Kollen, Zyon"]
[Result "*"]
[ECO "D36"]
[WhiteElo "2073"]
[BlackElo "2313"]
[Annotator "NA"]
[PlyCount "59"]
[EventDate "2018.07.07"]
[EventType "swiss"]
[EventCountry "NED"]
[SourceTitle "playchess.com"]
[Source "ChessBase"]
[SourceQuality "1"]
[TimeControl "40/5400+30:1800+30"]

1. c4 {[%emt 0:00:00]} e6 {[%emt 0:00:00]} 2. Nf3 {[%emt 0:00:08]} Nf6 {[%emt 0:00:00]} 3. Nc3 {[%emt 0:00:06]} d5 {[%emt 0:00:44]} 4. d4 {[%emt 0:00:17]} Be7 {[%emt 0:00:43]} 5. Bg5 {[%emt 0:00:22]} Nbd7 {[%emt 0:01:52]} 6. e3 {[%emt 0:00:27]} h6 {[%emt 0:02:19]} 7. Bh4 {[%emt 0:00:21]} O-O {[%emt 0:04:55]} 8. cxd5 {[%emt 0:00:59]} exd5 {[%emt 0:02:15]} 9. Bd3 {[%emt 0:00:13]} a6 {[%emt 0:05:19] LiveBook: 3 Games} 10. O-O {[%emt 0:00:51]} c6 {[%emt 0:01:53]} 11. Qc2 {[%emt 0:04:43]} Re8 {[%emt 0:00:27]} 12. Rab1 {[%emt 0:07:08]} b6 $146 {[%emt 0:08:34] D36: Queen's Gambit Declined: Exchange Variation: Main line (5 Bg5 c6 6 Qc2)} ({Predecessor:} 12... Nf8) 13. Bg3 {[%emt 0:30:08]} Bb7 {[%emt 0:04:24]} 14. b4 {[%emt 0:13:23]} a5 {[%emt 0:21:47]} 15. bxa5 {[%emt 0:08:14]} Rxa5 {[%emt 0:05:35]} 16. a4 {[%emt 0:00:45]} Qa8 {[%emt 0:01:56]} 17. Ne5 {[%emt 0:04:03]} Ba6 {[%emt 0:07:47]} 18. Rfd1 {[%emt 0:07:40]} Bxd3 {[%emt 0:02:02]} 19. Qxd3 {[%emt 0:00:06]} Nxe5 {[%emt 0:08:47]} 20. Bxe5 {[%emt 0:00:18]} Nd7 {[%emt 0:00:38]} 21. Bf4 {[%emt 0:03:23]} Bf6 {[%emt 0:00:25]} 22. e4 {[%emt 0:07:19]} dxe4 {[%emt 0:02:26]} 23. Nxe4 {[%emt 0:00:07]} Rxa4 $17 {[%emt 0:01:21]} 24. Nxf6+ {[%emt 0:02:24]} Nxf6 {[%emt 0:00:07]} 25. Be5 {[%emt 0:00:38]} Nd5 {[%emt 0:02:07]} 26. h3 {[%emt 0:00:37]} Ra3 {[%emt 0:01:03]} 27. Qf5 {[%emt 0:01:10]} Nc3 {[%emt 0:05:13]} 28. Qg4 {[%emt 0:00:56]} g6 {[%emt 0:02:10]} 29. Qh4 {[%emt 0:01:56]} Nxd1 {[%emt 0:03:01]} 30. Qf6 {[%emt 0:05:27]} *

[Event "8th Amsterdam Summer Open-A 2018"]
[Site "Amsterdam"]
[Date "2018.07.09"]
[Round "3"]
[White "Hernandez Iglesias, Francisco"]
[Black "Kohler, Aran"]
[Result "1/2-1/2"]
[ECO "D45"]
[WhiteElo "2047"]
[BlackElo "2175"]
[Annotator "NA"]
[PlyCount "83"]
[EventDate "2018.07.07"]
[EventType "swiss"]
[EventCountry "NED"]
[SourceTitle "playchess.com"]
[Source "ChessBase"]
[SourceQuality "1"]
[TimeControl "40/5400+30:1800+30"]

1. d4 {[%emt 0:00:00]} d5 {[%emt 0:00:15]} 2. c4 {[%emt 0:00:00]} c6 {[%emt 0:00:30]} 3. Nf3 {[%emt 0:00:03]} Nf6 {[%emt 0:00:09]} 4. Nc3 {[%emt 0:00:16]} e6 {[%emt 0:00:20]} 5. e3 {[%emt 0:00:14]} a6 {[%emt 0:00:25]} 6. Qc2 {[%emt 0:00:28]} b5 {[%emt 0:02:16]} 7. b3 {[%emt 0:02:13]} Nbd7 {[%emt 0:00:56]} 8. Bd3 {[%emt 0:01:06] D45: Semi-Slav: 5 e3} (8. Be2 Bd6 9. O-O O-O 10. e4 dxe4 11. Nxe4 Nxe4 12. Qxe4 Bb7 13. c5 Be7 14. Bd3 Nf6 15. Qh4 Re8 {1-0 (31) Riazantsev,A (2692)-Korobov,A (2680) Dubai 2014}) 8... Bb7 {[%emt 0:01:20]} 9. O-O {[%emt 0:01:42]} b4 {[%emt 0:01:12]} 10. Na4 $146 {[%emt 0:04:10]} ({Predecessor:} 10. Ne2 c5 11. cxd5 Bxd5 12. e4 Bb7 13. d5 exd5 14. e5 Ng4 15. e6 Nde5 16. exf7+ Nxf7 {1-0 (28) Trotsko,E (2183)-Podchufarov,I Tula 2000}) 10... c5 {[%emt 0:00:41]} 11. cxd5 {[%emt 0:09:05]} exd5 {[%emt 0:04:31]} 12. dxc5 {[%emt 0:01:54]} Bc6 {[%emt 0:02:43]} 13. Nb6 {[%emt 0:13:28]} Nxb6 {[%emt 0:02:09]} 14. cxb6 {[%emt 0:02:21]} Qxb6 {[%emt 0:00:15]} 15. Bb2 {[%emt 0:00:58]} Be7 {[%emt 0:09:44]} 16. Nd4 {[%emt 0:07:30]} (16. Rfc1 $142 Bd7 17. Bxh7) 16... Bd7 {[%emt 0:00:46]} 17. Rac1 {[%emt 0:03:22]} O-O {[%emt 0:01:47]} 18. Nf5 {[%emt 0:01:01]} Bd8 {[%emt 0:05:37]} 19. Rfd1 {[%emt 0:06:36]} g6 {[%emt 0:02:09]} 20. Bd4 {[%emt 0:04:17]} Qe6 {[%emt 0:01:54]} 21. Ng3 {[%emt 0:00:12]} Be7 {[%emt 0:09:31]} 22. Qe2 {[%emt 0:07:29]} a5 {[%emt 0:04:43]} 23. f4 {[%emt 0:08:44]} Rfc8 {[%emt 0:02:16]} 24. f5 {[%emt 0:01:15]} Qd6 {[%emt 0:00:05]} 25. Qb2 {[%emt 0:00:27]} Ng4 {[%emt 0:01:18]} 26. Rxc8+ {[%emt 0:04:38]} Rxc8 {[%emt 0:00:13]} 27. Rf1 {[%emt 0:00:06]} Bg5 $11 {[%emt 0:02:56]} 28. Qe2 {[%emt 0:02:24]} Bxf5 {[%emt 0:07:03]} 29. Bxf5 {[%emt 0:00:58]} gxf5 {[%emt 0:00:04]} 30. Rxf5 {[%emt 0:01:07]} Rc1+ {[%emt 0:01:05]} 31. Rf1 {[%emt 0:00:07]} Rxf1+ {[%emt 0:00:25]} 32. Nxf1 {[%emt 0:00:08]} h5 {[%emt 0:03:35]} 33. h3 {[%emt 0:01:33]} Nf6 {[%emt 0:01:10]} 34. Bxf6 {[%emt 0:03:12]} Qxf6 {[%emt 0:00:24]} 35. Qxh5 {[%emt 0:00:10]} d4 {[%emt 0:00:12]} 36. Qf3 {[%emt 0:07:15]} Qxf3 {[%emt 0:02:05]} 37. gxf3 {[%emt 0:00:05]} d3 {[%emt 0:02:08]} 38. f4 {[%emt 0:00:18]} Bh4 {[%emt 0:00:13]} 39. Kg2 {[%emt 0:00:10]} Be1 {[%emt 0:00:10]} 40. Kf3 {[%emt 0:00:06]} f5 {[%emt 0:00:20]} 41. e4 {[%emt 0:33:03]} fxe4+ {[%emt 0:30:22]} 42. Ke3 {[%emt 0:01:01]} 1/2-1/2